bitfinex/quotes_SOLUSD_20240615
["timestamp","ask_amount","ask_price","bid_price","bid_amount"]
[1718464747320,15.8098,145.27,145.2,120.65]
[1718464747522,15.8098,145.27,145.23,0.17]
[1718464747828,15.8098,145.27,145.21,41.33]
[1718464748407,15.8098,145.27,145.23,0.17]
[1718464748609,15.8098,145.27,145.23,20.68]
[1718464749287,15.8098,145.27,145.25,0.17]
[1718464749528,9.86637239,145.28,145.25,20.68]
[1718464749529,3.54737239,145.28,145.25,20.68]
[1718464749729,3.54737239,145.28,145.27,0.17]
[1718464750439,3.54737239,145.28,145.23,0.17]
[1718464750617,6.319,145.27,145.18,116.73]
[1718464750815,6.319,145.27,145.2,100.0]
[1718464751124,6.319,145.27,145.22,100.0]
[1718464751512,3.54737239,145.28,145.22,100.0]
[1718464751823,3.54737239,145.28,145.23,0.17]
[1718464752012,3.54737239,145.28,145.23,20.68]
[1718464758335,3.54737239,145.28,145.23,20.17]
[1718464758745,3.54737239,145.28,145.23,0.17]
[1718464759124,3.54737239,145.28,145.21,100.0]
[1718464759333,3.54737239,145.28,145.22,20.0]
[1718464759533,3.54737239,145.28,145.23,0.34]
[1718464760548,3.54737239,145.28,145.24,0.17]
[1718464762448,3.54737239,145.28,145.25,0.17]
[1718464762663,3.54737239,145.28,145.25,20.51]
[1718464763151,3.54737239,145.28,145.26,0.17]
[1718464763353,3.54737239,145.28,145.25,20.17]
[1718464763555,3.54737239,145.28,145.26,20.0]
[1718464763733,3.54737239,145.28,145.25,0.34]
[1718464763937,3.54737239,145.28,145.25,20.34]
[1718464764550,3.54737239,145.28,145.26,20.0]
[1718464764760,3.54737239,145.28,145.25,0.34]
[1718464765564,3.54737239,145.28,145.26,0.34]
[1718464766458,3.54737239,145.28,145.27,0.17]
[1718464767656,3.54737239,145.28,145.24,140.65]
[1718464768058,3.54737239,145.28,145.24,20.0]
[1718464768264,3.54737239,145.28,145.23,20.0]
[1718464768674,3.54737239,145.28,145.23,40.65]
[1718464769464,3.54737239,145.28,145.24,0.68]
[1718464770284,3.54737239,145.28,145.25,120.65]
[1718464770483,4.67610523,145.29,145.26,20.68]
[1718464771153,4.67610523,145.29,145.26,0.68]
[1718464771354,4.67610523,145.29,145.26,20.68]
[1718464772577,4.67610523,145.29,145.27,20.0]
[1718464772762,4.67610523,145.29,145.28,0.34]
[1718464772966,4.67610523,145.29,145.26,0.68]
[1718464773155,4.67610523,145.29,145.28,0.34]
[1718464773580,4.67610523,145.29,145.26,0.34]
[1718464773879,4.67610523,145.29,145.25,0.17]
[1718464774180,4.67610523,145.29,145.25,0.51]
[1718464774381,4.67610523,145.29,145.26,0.17]
[1718464774950,4.67610523,145.29,145.25,100.51]
[1718464775151,4.67610523,145.29,145.26,0.17]
[1718464775585,4.67610523,145.29,145.27,0.17]
[1718464775767,4.67610523,145.29,145.27,0.51]
[1718464775959,4.67610523,145.29,145.27,100.51]
[1718464776170,4.67610523,145.29,145.28,20.34]
[1718464776682,4.67610523,145.29,145.28,20.68]
[1718464778280,4.67610523,145.29,145.28,41.33]
[1718464779862,4.67610523,145.29,145.28,20.68]
[1718464780261,4.67610523,145.29,145.28,41.33]
[1718464780462,4.67610523,145.29,145.28,20.68]
[1718464780969,4.67610523,145.29,145.28,41.33]
[1718464784659,4.67610523,145.29,145.28,20.0]
[1718464785957,4.67610523,145.29,145.28,20.34]
[1718464786153,4.67610523,145.29,145.28,20.68]
[1718464786885,4.67610523,145.29,145.28,20.0]
[1718464787788,4.67610523,145.29,145.26,20.0]
[1718464788586,4.67610523,145.29,145.27,0.51]
[1718464789576,4.67610523,145.29,145.28,120.82]
[1718464789771,0.47147762,145.29,145.28,150.3597042]
[1718464789979,0.47147762,145.29,145.28,159.44030839]
[1718464790378,4.0311793,145.31,145.29,0.17]
[1718464790578,4.0311793,145.31,145.29,41.33]
[1718464790888,4.0311793,145.31,145.3,100.17]
[1718464791097,4.0311793,145.31,145.3,120.68]
[1718464791267,3.07802852,145.31,145.3,120.68]
[1718464795685,3.07802852,145.31,145.3,20.0]
[1718464795984,3.07802852,145.31,145.29,20.0]
[1718464796566,3.07802852,145.31,145.29,120.0]
[1718464796885,3.07802852,145.31,145.29,149.6797042]
[1718464797196,3.07802852,145.31,145.3,0.51]
[1718464797367,3.07802852,145.31,145.3,0.68]
[1718464803797,3.07802852,145.31,145.29,20.0]
[1718464805212,3.07802852,145.31,145.3,0.51]
[1718464805499,3.07802852,145.31,145.3,0.68]
[1718464810523,3.16598871,145.32,145.31,100.0]
[1718464810821,3.16598871,145.32,145.31,20.68]
[1718464811026,3.16598871,145.32,145.31,26.25]
[1718464813933,3.16598871,145.32,145.31,126.25]
[1718464814100,0.74298871,145.32,145.31,126.25]
[1718464814319,8.65358421,145.33,145.32,0.17]
[1718464814502,8.65358421,145.33,145.32,26.25]
[1718464816207,8.65358421,145.33,145.32,20.51]
[1718464816415,8.65358421,145.33,145.3,20.0]
[1718464816724,8.65358421,145.33,145.3,5.57]
[1718464816927,8.65358421,145.33,145.28,4.03118]
[1718464817100,8.65358421,145.33,145.31,5.57]
[1718464818104,8.65358421,145.33,145.3,5.57]
[1718464818707,21.5334,145.32,145.28,4.03118]
[1718464818905,21.5334,145.32,145.24,18.11030839]
[1718464819110,20.6133,145.29,145.2,18.11030839]
[1718464819300,6.4901,145.27,145.19,21.5334]
[1718464819520,12.0601,145.27,145.22,5.57]
[1718464819830,5.57,145.26,145.17,9.0297042]
[1718464820037,5.57,145.23,145.16,9.08060419]
[1718464820238,5.57,145.23,145.14,100.0]
[1718464820403,5.57,145.23,145.14,109.08060419]
[1718464820610,5.57,145.23,145.17,5.57]
[1718464820832,15.0433,145.24,145.14,9.08060419]
[1718464821128,15.0433,145.24,145.14,138.76030839]
[1718464821717,15.0433,145.24,145.15,20.0]
[1718464822111,15.0433,145.24,145.14,138.76030839]
[1718464822413,15.0433,145.24,145.15,16.74]
[1718464823203,15.0433,145.24,145.18,0.17]
[1718464823408,15.0433,145.24,145.18,0.68]
[1718464823604,15.0433,145.24,145.18,20.0]
[1718464823840,15.0433,145.24,145.16,20.0]
[1718464824521,15.0433,145.24,145.14,20.0]
[1718464825225,15.0433,145.24,145.16,120.65]
[1718464825432,15.0433,145.24,145.19,0.17]
[1718464825618,15.0433,145.24,145.19,17.42]
[1718464825827,6.4901,145.27,145.21,0.17]
[1718464826027,6.4901,145.27,145.23,0.17]
[1718464826239,6.4901,145.27,145.23,20.68]
[1718464826411,15.4428,145.28,145.23,20.68]
[1718464828752,15.4428,145.28,145.25,0.17]
[1718464828969,6.1719,145.31,145.25,20.68]
[1718464829323,6.1719,145.31,145.25,120.68]
[1718464829650,6.1719,145.31,145.25,158.07]
[1718464830328,6.1719,145.31,145.27,100.0]
[1718464830637,15.4428,145.32,145.28,20.34]
[1718464830844,15.4428,145.32,145.28,20.0]
[1718464831055,15.4428,145.32,145.26,20.17]
[1718464831226,15.4428,145.32,145.27,0.51]
[1718464832245,15.4428,145.32,145.28,0.17]
[1718464832453,15.4428,145.32,145.28,20.17]
[1718464832755,15.4428,145.32,145.28,20.0]
[1718464833131,15.4428,145.32,145.27,0.51]
[1718464835327,8.65358421,145.33,145.27,0.51]
[1718464835529,8.65358421,145.33,145.27,0.34]
[1718464840072,8.65358421,145.33,145.26,20.34]
[1718464840280,8.65358421,145.33,145.26,20.0]
[1718464840563,8.65358421,145.33,145.25,20.0]
[1718464841247,21.6147,145.32,145.19,100.0]
[1718464841453,21.6147,145.32,145.18,6.2162]
[1718464841454,6.1719,145.3,145.18,16.74]
[1718464841750,15.4428,145.29,145.18,35.945486]
[1718464841947,15.4428,145.29,145.18,16.74]
[1718464842156,15.4428,145.29,145.18,25.7697042]
[1718464842480,6.1719,145.26,145.18,15.4428]
[1718464842767,15.4428,145.25,145.13,262.4297042]
[1718464843171,15.4428,145.25,145.13,271.51030839]
[1718464843382,15.4428,145.25,145.15,20.65]
[1718464843547,15.4428,145.25,145.14,109.0297042]
[1718464844259,15.4428,145.25,145.14,129.6797042]
[1718464844882,15.4428,145.25,145.16,100.0]
[1718464845176,15.4428,145.25,145.17,0.51]
[1718464845552,15.4428,145.25,145.17,20.51]
[1718464846190,15.4428,145.25,145.17,0.51]
[1718464847493,15.4428,145.25,145.18,0.17]
[1718464849353,15.4428,145.25,145.19,0.17]
[1718464849557,15.4428,145.25,145.19,20.51]
[1718464849875,15.4428,145.25,145.19,20.34]
[1718464850676,15.4428,145.25,145.19,20.0]
[1718464850873,15.4428,145.25,145.2,45.0]
[1718464854172,15.4428,145.25,145.19,20.0]
[1718464854349,15.4428,145.25,145.16,20.0]
[1718464854555,15.4428,145.25,145.15,20.0]
[1718464855564,15.4428,145.25,145.16,45.51]
[1718464855900,15.4428,145.25,145.17,20.0]
[1718464856069,15.4428,145.25,145.18,45.17]
[1718464856963,15.4428,145.25,145.18,45.0]
[1718464858995,15.4428,145.25,145.17,20.0]
[1718464859192,15.4428,145.25,145.15,20.0]
[1718464859561,23.1195,145.24,145.15,20.0]
[1718464860067,23.1195,145.24,145.12,20.0]
[1718464860276,22.9495,145.24,145.12,100.0]
[1718464860682,22.9495,145.24,145.13,20.0]
[1718464860866,22.9495,145.24,145.14,45.68]
[1718464861061,22.9495,145.24,145.15,20.0]
[1718464861261,22.9495,145.24,145.16,45.51]
[1718464861978,22.9495,145.24,145.17,20.0]
[1718464862179,22.9495,145.24,145.19,0.17]
[1718464862363,22.9495,145.24,145.19,20.17]
[1718464862565,22.9495,145.24,145.21,0.17]
[1718464864289,22.9495,145.24,145.21,20.17]
[1718464864590,22.9495,145.24,145.22,45.0]
[1718464871603,21.2875,145.28,145.23,20.68]
[1718464874510,15.0498,145.28,145.23,141.33]
[1718464874672,6.2287,145.31,145.25,0.17]
[1718464874868,6.2287,145.31,145.25,0.68]
[1718464875068,6.2287,145.31,145.26,0.34]
[1718464875499,6.2287,145.31,145.27,0.34]
[1718464875714,15.4892,145.32,145.27,0.34]
[1718464876010,15.4892,145.32,145.23,9.08060419]
[1718464876212,15.4892,145.32,145.24,0.68]
[1718464876379,15.4892,145.32,145.19,109.0297042]
[1718464876586,15.4892,145.32,145.2,0.34]
[1718464876885,15.4892,145.32,145.18,16.74]
[1718464876886,106.2287,145.31,145.18,16.74]
[1718464877085,106.2287,145.31,145.18,37.39]
[1718464877271,6.2287,145.31,145.19,100.0]
[1718464877671,15.4892,145.3,145.17,100.0]
[1718464878307,15.4892,145.3,145.17,120.65]
[1718464879084,15.4892,145.3,145.18,0.51]
[1718464879291,15.4892,145.3,145.19,0.17]
[1718464882182,15.4892,145.3,145.2,0.17]
[1718464882378,15.4892,145.3,145.2,20.51]
[1718464882578,15.4892,145.3,145.21,0.17]
[1718464882785,15.4892,145.3,145.21,0.51]
[1718464882996,15.4892,145.3,145.21,20.51]
[1718464883199,15.4892,145.3,145.21,0.51]
[1718464885693,15.4892,145.3,145.22,0.17]
[1718464886112,15.4892,145.3,145.22,0.51]
[1718464888892,15.4892,145.3,145.23,0.17]
[1718464889095,15.4892,145.3,145.23,0.34]
[1718464890591,15.4892,145.3,145.22,0.34]
[1718464890796,15.4892,145.3,145.23,0.34]
[1718464891523,15.6231,145.28,145.15,6.49665109]
[1718464891692,22.2262,145.25,145.12,116.74]
[1718464892510,23.0977,145.24,145.12,16.74]
[1718464892709,10.3615,145.22,145.09,16.74]
[1718464892915,115.6231,145.23,145.06,8.16303754]
[1718464892916,7.8147,145.2,145.06,8.16303754]
[1718464893232,6.6031,145.16,145.04,100.0]
[1718464893532,106.6031,145.16,145.04,100.0]
[1718464894488,106.6031,145.16,145.05,20.0]
[1718464894685,109.1521,145.16,145.06,0.17]
[1718464894886,106.6031,145.16,145.06,0.17]
[1718464895317,109.152,145.16,145.04,100.0]
[1718464895692,106.6031,145.16,145.04,100.0]
[1718464895902,6.6031,145.16,145.04,100.0]
[1718464896533,6.6031,145.16,145.05,0.68]
[1718464897498,106.6031,145.16,145.05,0.68]
[1718464897732,109.152,145.16,145.05,0.68]
[1718464898031,106.6031,145.16,145.05,0.68]
[1718464899009,18.1724,145.14,145.0,120.65]
[1718464899222,15.6231,145.14,145.02,120.65]
[1718464899732,15.6231,145.14,145.05,120.65]
[1718464900522,15.6231,145.14,145.06,0.51]
[1718464904453,6.6031,145.13,145.01,120.65]
[1718464904844,9.1525,145.13,145.01,120.65]
[1718464905011,6.6031,145.13,145.01,120.65]
[1718464905726,6.6031,145.13,145.03,0.17]
[1718464905932,6.6031,145.13,145.03,0.34]
[1718464906111,6.6031,145.13,145.04,0.34]
[1718464909634,109.1526,145.13,145.04,0.34]
[1718464909849,106.6031,145.13,145.03,0.34]
[1718464910847,16.4501,145.12,145.03,0.34]
[1718464912537,16.4501,145.12,145.03,0.17]
[1718464912846,6.4956,145.11,145.02,0.34]
[1718464913056,16.4501,145.1,145.02,0.34]
[1718464916359,16.4501,145.1,144.98,22.34322615]
[1718464916831,16.4501,145.1,144.99,100.0]
[1718464917232,16.4501,145.1,144.98,22.34322615]
[1718464917631,16.4501,145.1,144.99,0.68]
[1718464918933,0.34,145.09,144.98,20.0]
[1718464919132,16.4501,145.07,144.97,16.74]
[1718464919748,16.4501,145.07,144.95,128.33353752]
[1718464919954,16.4501,145.07,144.97,137.39]
[1718464920158,16.4501,145.07,145.01,0.17]
[1718464920329,16.4501,145.07,145.01,0.68]
[1718464920840,16.4501,145.07,145.04,0.17]
[1718464921052,16.4501,145.07,145.01,0.51]
[1718464921741,16.4501,145.07,145.02,0.17]
[1718464922044,16.4501,145.07,145.02,0.68]
[1718464922255,16.4501,145.07,145.02,117.42]
[1718464922452,16.4501,145.07,145.02,17.42]
[1718464922658,16.4501,145.07,145.02,0.68]
[1718464923154,16.4501,145.07,145.0,20.0]
[1718464923471,16.4501,145.07,145.01,0.17]
[1718464923637,16.4501,145.07,145.0,0.34]
[1718464924272,16.4501,145.07,145.0,0.17]
[1718464924493,16.4501,145.07,144.97,100.17]
[1718464924768,16.4501,145.07,144.98,0.17]
[1718464924970,16.4501,145.07,144.97,0.34]
[1718464925538,16.4501,145.07,144.99,0.17]
[1718464925749,16.4501,145.07,144.99,0.34]
[1718464926158,16.4501,145.07,145.0,0.34]
[1718464927243,16.4501,145.07,145.01,0.17]
[1718464927450,16.4501,145.07,145.01,0.34]
[1718464927655,16.4501,145.07,145.02,0.34]
[1718464927882,16.4501,145.07,145.03,0.17]
[1718464928066,16.4501,145.07,145.03,0.34]
[1718464928248,16.4501,145.07,145.04,0.34]
[1718464930663,16.4501,145.07,145.05,0.17]
[1718464930853,16.4501,145.07,145.05,0.34]
[1718464931197,16.4501,145.07,145.06,0.51]
[1718464931680,16.4501,145.07,145.06,0.68]
[1718464931851,117.8387,145.19,145.07,0.17]
[1718464931852,6.2537,145.17,145.07,0.17]
[1718464932049,15.4734,145.16,145.07,0.34]
[1718464933290,15.4734,145.16,145.08,0.17]
[1718464933458,15.4734,145.16,145.08,0.51]
[1718464935062,15.4734,145.13,145.04,16.74]
[1718464935286,15.4734,145.13,145.01,116.74]
[1718464936356,15.4734,145.13,145.02,0.34]
[1718464936580,15.4734,145.13,145.03,0.17]
[1718464936788,118.0228,145.13,145.03,0.17]
[1718464937505,115.4734,145.13,145.03,0.17]
[1718464938181,115.4734,145.13,145.03,0.34]
[1718464938558,15.4734,145.13,145.04,0.51]
[1718464939077,15.4734,145.13,145.05,0.17]
[1718464940863,15.4734,145.13,145.05,0.34]
[1718464941061,15.4734,145.13,145.06,0.34]
[1718464941561,15.4734,145.13,145.06,0.17]
[1718464942580,15.4734,145.13,145.06,0.34]
[1718464942757,15.4734,145.13,145.07,0.17]
[1718464943578,15.4734,145.13,145.06,0.34]
[1718464944160,15.4734,145.13,145.07,0.51]
[1718464944360,15.4734,145.13,145.08,0.17]
[1718464944879,15.4734,145.13,145.08,0.34]
[1718464945073,15.4734,145.13,145.08,0.51]
[1718464945877,15.4734,145.13,145.08,0.17]
[1718464950199,15.4734,145.13,145.03,20.65]
[1718464951482,15.4734,145.13,145.04,0.34]
[1718464951794,15.4734,145.13,145.04,0.68]
[1718464952091,15.4734,145.13,145.06,0.17]
[1718464952298,15.4734,145.13,145.06,20.68]
[1718464956903,15.4734,145.13,145.09,5.59]
[1718464957103,15.4734,145.13,145.1,5.59]
[1718464958002,15.4734,145.13,145.11,5.59]
[1718464959098,15.4734,145.13,145.12,5.59]
[1718464959297,15.0111,145.17,145.12,6.27]
[1718464959543,15.0111,145.17,145.13,5.59]
[1718464959673,15.0111,145.17,145.13,5.93]
[1718464960184,15.0111,145.17,145.13,5.59]
[1718464960699,15.0111,145.17,145.08,0.17]
[1718464960878,20.6011,145.17,145.12,5.59]
[1718464961273,15.0111,145.17,145.12,5.59]
[1718464962604,20.6011,145.17,145.12,5.59]
[1718464963201,20.6011,145.22,145.16,5.59]
[1718464963418,20.6011,145.22,145.17,5.59]
[1718464964495,20.6011,145.22,145.16,5.59]
[1718464965003,15.0111,145.22,145.15,0.34]
[1718464965201,15.0111,145.22,145.15,0.17]
[1718464965406,15.0111,145.22,145.15,0.34]
[1718464965600,15.0111,145.22,145.16,0.34]
[1718464968006,15.0111,145.22,145.13,20.0]
[1718464968323,15.0111,145.22,145.12,20.0]
[1718464969412,15.0111,145.22,145.13,0.17]
[1718464969599,15.0111,145.22,145.13,0.68]
[1718464970596,15.0111,145.22,145.13,100.68]
[1718464970795,15.0111,145.22,145.15,0.17]
[1718464971103,15.0111,145.22,145.15,0.68]
[1718464985028,15.0111,145.22,145.18,5.58]
[1718464986131,15.0111,145.22,145.19,5.58]
[1718464987213,15.0111,145.22,145.18,5.75]
[1718464987412,100.0,145.31,145.21,5.58]
[1718464987413,5.58,145.27,145.21,5.58]
[1718464987607,21.6737,145.29,145.22,5.58]
[1718464987808,5.58,145.28,145.22,5.58]
[1718464988028,5.58,145.28,145.2,0.17]
[1718464991629,5.58,145.28,145.23,5.58]
[1718464992033,5.58,145.28,145.22,5.58]
[1718464993852,5.58,145.28,145.23,5.58]
[1718464994365,21.6737,145.29,145.23,5.58]
[1718464994547,5.58,145.28,145.23,5.58]
[1718464995043,27.2537,145.29,145.23,5.58]
[1718464995348,21.6737,145.29,145.23,5.58]
[1718464995727,27.2537,145.29,145.23,5.58]
[1718464995928,27.2537,145.29,145.24,5.58]
[1718464995929,21.6737,145.29,145.24,5.58]
[1718464996323,21.6737,145.29,145.23,0.34]
[1718464996553,5.58,145.28,145.22,0.17]
[1718464996756,21.6737,145.29,145.23,5.58]
[1718464996947,5.58,145.28,145.23,5.58]
[1718464997126,27.2537,145.29,145.24,0.34]
[1718464997326,27.2537,145.29,145.24,5.92]
[1718464997327,21.6737,145.29,145.24,5.92]
[1718464999569,15.1445,145.29,145.24,0.34]
[1718464999727,15.1445,145.29,145.26,5.58]
[1718464999923,35.90728421,145.33,145.27,5.58]
[1718465000540,30.32728421,145.33,145.27,5.58]
[1718465000825,5.58,145.32,145.27,5.58]
[1718465001534,30.32728421,145.33,145.27,5.58]
[1718465001737,35.90728421,145.33,145.28,5.58]
[1718465003152,5.58,145.32,145.27,5.58]
[1718465003952,30.32728421,145.33,145.2,108.95748198]
[1718465004174,5.58,145.28,145.22,5.58]
[1718465006156,5.58,145.27,145.18,7.07442886]
[1718465006358,5.58,145.26,145.2,5.58]
[1718465007165,5.58,145.25,145.16,22.53596397]
[1718465007333,21.9058,145.22,145.16,8.47798197]
[1718465007543,5.58,145.2,145.15,5.58]
[1718465007755,5.58,145.2,145.11,28.6748]
[1718465008050,16.3258,145.22,145.15,5.58]
[1718465008227,5.58,145.2,145.15,5.58]
[1718465008425,5.58,145.21,145.15,5.58]
[1718465008849,5.58,145.21,145.16,5.58]
[1718465009042,16.3258,145.22,145.16,5.58]
[1718465009257,16.3258,145.22,145.17,5.58]
[1718465009461,21.9058,145.22,145.17,5.58]
[1718465010129,16.3258,145.22,145.17,5.58]
[1718465010357,16.3258,145.22,145.11,128.6748]
[1718465010556,16.3258,145.22,145.12,20.17]
[1718465010557,21.9058,145.22,145.12,20.17]
[1718465010733,21.9058,145.22,145.17,5.58]
[1718465011337,22.6418,145.29,145.13,120.67]
[1718465011542,22.6418,145.29,145.19,5.58]
[1718465011543,5.58,145.25,145.19,5.58]
[1718465012846,22.8118,145.29,145.15,120.67]
[1718465013045,5.58,145.27,145.22,5.58]
[1718465013467,22.6418,145.29,145.23,5.58]
[1718465013766,22.6418,145.29,145.18,105.58]
[1718465013767,22.6418,145.29,145.25,5.58]
[1718465014367,22.6418,145.29,145.24,5.58]
[1718465015545,22.6418,145.29,145.19,0.34]
[1718465015546,5.58,145.28,145.19,0.34]
[1718465015860,28.2218,145.29,145.23,5.58]
[1718465016064,22.6418,145.29,145.24,5.58]
[1718465016365,28.2218,145.29,145.24,5.58]
[1718465017649,28.2218,145.29,145.23,5.58]
[1718465018253,28.2218,145.29,145.24,5.58]
[1718465018665,22.6418,145.29,145.25,5.58]
[1718465018860,16.3258,145.29,145.27,5.58]
[1718465019062,24.97938421,145.33,145.26,0.34]
[1718465019259,24.97938421,145.33,145.3,5.58]
[1718465019879,24.97938421,145.33,145.27,0.17]
[1718465020167,24.97938421,145.33,145.28,5.58]
[1718465022065,24.97938421,145.33,145.29,5.58]
[1718465022264,24.97938421,145.33,145.3,5.58]
[1718465024961,24.97938421,145.33,145.29,5.58]
[1718465025477,24.97938421,145.33,145.3,5.58]
[1718465027272,24.97938421,145.33,145.28,0.34]
[1718465027484,24.97938421,145.33,145.3,5.58]
[1718465028184,24.97938421,145.33,145.28,0.34]
[1718465028370,30.55938421,145.33,145.27,0.17]
[1718465028569,30.55938421,145.33,145.28,5.58]
[1718465030773,30.55938421,145.33,145.26,0.68]
[1718465030974,30.55938421,145.33,145.28,5.58]
[1718465032384,24.97938421,145.33,145.28,5.58]
[1718465033175,24.97938421,145.33,145.29,5.58]
[1718465035288,24.97938421,145.33,145.26,0.68]
[1718465036896,24.97938421,145.33,145.3,5.58]
[1718465037591,24.97938421,145.33,145.29,0.17]
[1718465037898,24.97938421,145.33,145.32,5.58]
[1718465037899,8.65358421,145.33,145.32,5.58]
[1718465038068,8.65358421,145.33,145.29,0.34]
[1718465038282,8.65358421,145.33,145.32,5.58]
[1718465040809,8.65358421,145.33,145.32,11.84]
[1718465041304,8.65358421,145.33,145.32,6.26]
[1718465042083,8.65358421,145.33,145.32,11.84]
[1718465042296,8.65358421,145.33,145.32,6.26]
[1718465046223,8.65358421,145.33,145.32,26.93]
[1718465046523,8.65358421,145.33,145.32,6.26]
[1718465048429,8.65358421,145.33,145.32,26.93]
[1718465048596,3.65258422,145.33,145.32,32.51]
[1718465049692,3.65258422,145.33,145.32,0.68]
[1718465049995,3.65258422,145.33,145.32,11.16]
[1718465051209,3.76268631,145.34,145.33,0.17]
[1718465051526,3.76268631,145.34,145.33,0.51]
[1718465051733,3.76268631,145.34,145.33,0.68]
[1718465052825,3.76268631,145.34,145.33,5.58]
[1718465053728,3.76268631,145.34,145.3,5.050382]
[1718465053897,3.76268631,145.34,145.33,5.58]
[1718465056337,3.26268631,145.34,145.33,5.58]
[1718465057161,0.76268631,145.34,145.33,5.58]
[1718465057802,0.76268631,145.34,145.33,6.26]
[1718465063448,0.76268631,145.34,145.33,5.75]
[1718465063618,0.76268631,145.34,145.33,5.58]
[1718465063820,0.76268631,145.34,145.3,0.17]
[1718465064050,0.76268631,145.34,145.33,5.58]
[1718465064345,16.63368631,145.34,145.3,5.58]
[1718465064521,16.63368631,145.34,145.29,5.58]
[1718465065426,16.63368631,145.34,145.3,5.58]
[1718465066324,16.63368631,145.34,145.27,18.00760839]
[1718465066525,16.63368631,145.34,145.3,5.58]
[1718465066747,5.58,145.33,145.25,5.050382]
[1718465066955,5.58,145.31,145.26,5.58]
[1718465067120,5.58,145.31,145.22,9.11483752]
[1718465067320,5.58,145.31,145.25,5.58]
[1718465067847,5.58,145.31,145.22,109.11483752]
[1718465068147,5.58,145.31,145.26,5.58]
[1718465068328,5.58,145.32,145.26,5.58]
[1718465069245,116.63368631,145.34,145.22,109.11483752]
[1718465069560,5.58,145.31,145.26,5.58]
[1718465069936,5.58,145.31,145.24,0.17]
[1718465070151,5.58,145.31,145.26,5.58]
[1718465070678,5.58,145.31,145.24,0.17]
[1718465071267,5.58,145.31,145.26,5.58]
[1718465071755,122.6673,145.3,145.18,6.42442886]
[1718465071938,122.6673,145.3,145.22,5.58]
[1718465072736,122.6673,145.3,145.19,5.58]
[1718465072940,122.6673,145.3,145.23,5.58]
[1718465073840,122.6673,145.3,145.19,5.58]
[1718465074158,122.6673,145.3,145.22,5.58]
[1718465074352,122.6673,145.3,145.19,5.58]
[1718465074560,122.6673,145.3,145.22,5.58]
[1718465074760,122.6673,145.3,145.2,0.34]
[1718465074937,122.6673,145.3,145.22,5.58]
[1718465075565,122.6673,145.3,145.23,5.58]
[1718465075766,122.6673,145.3,145.2,0.34]
[1718465075937,5.58,145.28,145.22,5.58]
[1718465076267,16.3813,145.26,145.2,0.34]
[1718465076477,16.3813,145.26,145.21,5.58]
[1718465076635,16.3813,145.26,145.2,0.17]
[1718465076963,16.3813,145.26,145.21,5.58]
[1718465077160,16.3813,145.26,145.18,31.43483752]
[1718465077161,5.58,145.24,145.18,9.11483752]